Workbook

Sheet Estimated Costs
A1: University of Arkansas System Health Benefits Calculator for 2021 Plan Year
A2: Disclaimer: | J2: Hide these rows prior to distribution
A3: The scenarios presented here are illustrative and are only meant to provide a basis for comparison among the three medical plan options. The scenarios are not a guarantee of future results. The actual costs of services may vary depending on when and where services are performed.
A6: Instructions:
A8: First, select your desired coverage election in cell B13 (highlighted blue).
A9: Next, add your monthly employee premium for health insurance for each medical plan option in cells B16, B17, and B18 (highlighted green).
A10: Refer to your campus HR website or contact your campus HR department if you are unsure of your monthly empoyee premium.
A11: The monthly employee premium should be on a 12-month basis.
A13: Choose your coverage election | B13: Employee Only
A15: Enter your monthly premium (12-month basis) for the following plans:
A16: Health Savings Plan | K16: Activate Macro? | L16: Y
A17: Classic Plan
A18: Premier Plan
A20: Output: | N20: Prior to release, click this button
A21: Based on your inputs, see below for two examples illustrating your total estimated out-of-pocket expenses under each plan.
A23: Employee Only - Low Health Care Needs | K23: =+IF(OR($B$13="Employee Only",$L$16="N"),1,0) -> 1
K24: 1
A25: • 1 preventive doctor’s office visit: $172 ($0 member cost in-network, since in-network preventive visits are covered at 100%) | K25: 1
A26: • 1 diagnostic doctor’s office visit: $127 | K26: 1
A27: • 1 Tier-2 antibiotic: $75 | K27: 1
K28: 1
A29: Your Annual Costs | K29: 1
B30: Health Savings Plan | C30: Classic Plan | D30: Premier Plan | K30: 1
A31: Preventive visit | B31: 0 | C31: 0 | D31: 0 | K31: 1
A32: Office visit | B32: 127 | C32: 35 | D32: 25 | K32: 1
A33: Tier-2 prescription drugs | B33: 75 | C33: 62 | D33: 57 | K33: 1
A34: Total out-of-pocket expenses | B34: =+SUM(B31:B33) -> 202 | C34: =+SUM(C31:C33) -> 97 | D34: =+SUM(D31:D33) -> 82 | K34: 1
A35: University contribution to Health Savings Account | B35: =+IF($B$13="Employee Only",500,1000) -> 500 | C35: N/A | D35: N/A | K35: 1
A36: Employee premium for coverage | B36: =+$B$16*12 -> 0 | C36: =+$B$17*12 -> 0 | D36: =+$B$18*12 -> 0 | K36: =+IF(OR($B$13="Employee Only",$L$16="N"),1,0) -> 1
A37: Employee net cost | B37: =+B34+B36-B35 -> -298 | C37: =+C34+C36 -> 97 | D37: =+D34+D36 -> 82 | K37: 1
K38: 1
A39: ="Based on these expenses, the lowest-cost option for you would be the "&INDEX(B30:D30,MATCH(MIN(B37:D37),B37:D37,0))&"." -> Based on these expenses, the lowest-cost option for you would be the Health Savings Plan. | K39: 1
K40: 1
K41: 1
A42: Employee Only - High Health Care Needs | K42: 1
K43: 1
A44: • 1 preventive doctor’s office visit: $172 ($0 member cost in-network, since in-network preventive visits are covered at 100%) | K44: 1
A45: • 1 emergency room visit: $1,233 | K45: 1
A46: • 3 days in the hospital: $8,157 | K46: 1
A47: • 6 specialist diagnostic doctor’s office visits: $762 | K47: 1
A48: • 2 Tier-2 antibiotic: $300 | K48: 1
K49: 1
A50: Your Annual Costs | K50: 1
B51: Health Savings Plan | C51: Classic Plan | D51: Premier Plan | K51: 1
A52: Preventive visit | B52: 0 | C52: 0 | D52: 0 | K52: 1
A53: Emergency room visit (admitted) | B53: 1233 | C53: 0 | D53: 0 | K53: 1
A54: Hospital stay | B54: =+(2800-B53)+(8157-(2800-B53))*0.1 -> 2226 | C54: =300+1250+(8157-300-1250)*0.25 -> 3201.75 | D54: =300+700 +(8157-300-700)*0.2 -> 2431.4 | K54: 1
A55: Specialist office visits | B55: =762*0.1 -> 76.2 | C55: =6*55 -> 330 | D55: =45*6 -> 270 | K55: 1
A56: Tier-2 prescriptions drugs | B56: =300*0.1 -> 30 | C56: =62*2 -> 124 | D56: =57*2 -> 114 | K56: 1
A57: Total out-of-pocket expenses | B57: =+SUM(B52:B56) -> 3565.2 | C57: =+SUM(C52:C56) -> 3655.75 | D57: =+SUM(D52:D56) -> 2815.4 | K57: 1
A58: University contribution to Health Savings Account | B58: =+IF($B$13="Employee Only",500,1000) -> 500 | C58: N/A | D58: N/A | K58: 1
A59: Employee premium for coverage | B59: =+$B$16*12 -> 0 | C59: =+$B$17*12 -> 0 | D59: =+$B$18*12 -> 0 | K59: 1
A60: Employee net cost | B60: =+B57+B59-B58 -> 3065.2 | C60: =+C57+C59 -> 3655.75 | D60: =+D57+D59 -> 2815.4 | K60: 1
K61: 1
A62: ="Based on these expenses, the lowest-cost option for you would be the "&INDEX(B51:D51,MATCH(MIN(B60:D60),B60:D60,0))&"." -> Based on these expenses, the lowest-cost option for you would be the Premier Plan. | K62: 1
K63: 1
K64: 1
A65: Employee and Spouse - Low Health Care Needs | K65: =+IF(OR($B$13="Employee & Spouse",$L$16="N"),1,0) -> 0
K66: =+IF(OR($B$13="Employee & Spouse",$L$16="N"),1,0) -> 0
A67: Employee's Expenses | K67: 0
A68: • 12 Tier 1 drugs: $396 | K68: 0
A69: • 2 doctor’s office visits: $254 | K69: 0
A70: • 2 specialist doctor’s office visits: $254 | K70: 0
A71: • 1 preventive doctor’s office visit: $172 ($0 member cost in-network, since in-network preventive visits are covered at 100%) | K71: 0
K72: 0
A73: Spouse's Expenses | K73: 0
A74: • 6 Tier 1 drugs: $198 | K74: 0
A75: • 2 doctor’s office visits: $254 | K75: 0
A76: • 2 Tier-2 drugs: $300 | K76: 0
A77: • 1 preventive doctor’s office visit: $172 ($0 member cost in-network, since in-network preventive visits are covered at 100%) | K77: 0
K78: 0
A79: Your Annual Costs | K79: 0
B80: Health Savings Plan | C80: Classic Plan | D80: Premier Plan | K80: 0
A81: Preventive visits for each family member | B81: 0 | C81: 0 | D81: 0 | K81: 0
A82: Employee's Tier 1 prescription drugs | B82: 396 | C82: =12*18 -> 216 | D82: =12*14 -> 168 | K82: 0
A83: Employee's office visits | B83: 254 | C83: =2*35 -> 70 | D83: =2*25 -> 50 | K83: 0
A84: Employee's specialist office visits | B84: 254 | C84: =2*55 -> 110 | D84: =2*45 -> 90 | K84: 0
A85: Spouse's Tier 1 prescription drugs | B85: 198 | C85: =6*18 -> 108 | D85: =6*14 -> 84 | K85: 0
A86: Spouse's office visits | B86: 254 | C86: =2*35 -> 70 | D86: =2*25 -> 50 | K86: 0
A87: Spouse's Tier 2 prescription drugs | B87: 300 | C87: =2*62 -> 124 | D87: =2*57 -> 114 | K87: 0
A88: Total out-of-pocket expenses | B88: =+SUM(B81:B87) -> 1656 | C88: =+SUM(C81:C87) -> 698 | D88: =+SUM(D81:D87) -> 556 | K88: 0
A89: University contribution to Health Savings Account | B89: =+IF($B$13="Employee Only",500,1000) -> 500 | C89: N/A | D89: N/A | K89: 0
A90: Employee premium for coverage | B90: =+$B$16*12 -> 0 | C90: =+$B$17*12 -> 0 | D90: =+$B$18*12 -> 0 | K90: 0
A91: Employee net cost | B91: =+B88+B90-B89 -> 1156 | C91: =+C88+C90 -> 698 | D91: =+D88+D90 -> 556 | K91: 0
K92: 0
A93: ="Based on these expenses, the lowest cost option for you would be the "&INDEX(B80:D80,MATCH(MIN(B91:D91),B91:D91,0))&"." -> Based on these expenses, the lowest cost option for you would be the Premier Plan. | K93: 0
K94: 0
K95: 0
A96: Employee and Spouse - High Health Care Needs | K96: 0
K97: 0
A98: Spouse's Expenses | K98: 0
A99: • 1 ambulance: $1,040 | K99: 0
A100: • 1 emergency room visit: $1,233 | K100: 0
A101: • 4 days in the hospital: $10,876 | K101: 0
A102: • 1 Tier 3 medication: $2,980 | K102: 0
A103: • 3 specialist diagnostic doctor’s office visits: $381 | K103: 0
A104: • 14 physical therapy visits: $3,346 | K104: 0
K105: 0
A106: Your Annual Costs | K106: 0
B107: Health Savings Plan | C107: Classic Plan | D107: Premier Plan | K107: 0
A108: Spouse's ambulance | B108: 1040 | C108: 0 | D108: 0 | K108: 0
A109: Spouse's emergency room visit (admitted) | B109: 1233 | C109: 0 | D109: 0 | K109: 0
A110: Spouse's hospital stay | B110: =+(2800-B109-B108)+(10876-(2800-B109-B108))*0.1 -> 1561.9 | C110: =300+1250+(10876-300-1250)*0.25 -> 3881.5 | D110: =300+700+(10876-300-700)*0.2 -> 2975.2 | K110: 0
A111: Spouse's Tier 3 prescription drugs | B111: =2980*0.1 -> 298 | C111: 97 | D111: 92 | K111: 0
A112: Spouse's 3 specialist office visits | B112: =381*0.1 -> 38.1 | C112: =55*3 -> 165 | D112: =MIN(3*45,MAX(0,3050-D110)) -> 74.8 | K112: 0
A113: Spouse's 14 physical therapy visits | B113: =3346*0.1 -> 334.6 | C113: =MIN(55+(3346-55)*0.25,5250-C112-C110-C109-C108) -> 877.75 | D113: =MIN(45+(3346-45)*0.2,MAX(3050-D112-D110-D109-D108,0)) -> 0 | K113: 0
A114: Total out-of-pocket expenses | B114: =+SUM(B108:B113) -> 4505.6 | C114: =+SUM(C108:C113) -> 5021.25 | D114: =+SUM(D108:D113) -> 3142 | K114: 0
A115: University contribution to Health Savings Account | B115: =+IF($B$13="Employee Only",500,1000) -> 500 | C115: N/A | D115: N/A | K115: 0
A116: Employee premium for coverage | B116: =+$B$16*12 -> 0 | C116: =+$B$17*12 -> 0 | D116: =+$B$18*12 -> 0 | K116: 0
A117: Employee net cost | B117: =+B114+B116-B115 -> 4005.6 | C117: =+C114+C116 -> 5021.25 | D117: =+D114+D116 -> 3142 | K117: 0
K118: 0
A119: ="Based on these expenses, the lowest cost option for you would be the "&INDEX(B107:D107,MATCH(MIN(B117:D117),B117:D117,0))&"." -> Based on these expenses, the lowest cost option for you would be the Premier Plan. | K119: 0
K120: 0
K121: 0
A122: Employee and Child - Low Health Care Needs | K122: =+IF(OR($B$13="Employee & Child(ren)",$L$16="N"),1,0) -> 0
K123: =+IF(OR($B$13="Employee & Child(ren)",$L$16="N"),1,0) -> 0
A124: Employee's Expenses | K124: 0
A125: • 1 preventive doctor’s office visit: $172 ($0 member cost in-network, since in-network preventive visits are covered at 100%) | K125: 0
A126: • 1 doctor’s office visit: $127 | K126: 0
A127: • 2 Tier 1 antibiotic: $66 | K127: 0
K128: 0
A129: Child's Expenses | K129: 0
A130: • 1 preventive doctor’s office visit: $172 ($0 member cost in-network, since in-network preventive visits are covered at 100%) | K130: 0
A131: • 1 Tier 2 antibiotic: $75 | K131: 0
A132: • 2 doctor’s office visits: $254 | K132: 0
K133: 0
A134: Your Annual Costs | K134: 0
B135: Health Savings Plan | C135: Classic Plan | D135: Premier Plan | K135: 0
A136: Preventive visits for each family member | B136: 0 | C136: 0 | D136: 0 | K136: 0
A137: Employee's office visit | B137: 127 | C137: 35 | D137: 25 | K137: 0
A138: Employee's Tier 1 prescription drugs | B138: 66 | C138: =2*18 -> 36 | D138: =2*14 -> 28 | K138: 0
A139: Child's office visits | B139: 254 | C139: =2*35 -> 70 | D139: =2*25 -> 50 | K139: 0
A140: Child's Tier 2 prescription drugs | B140: 75 | C140: 62 | D140: 57 | K140: 0
A141: Total out-of-pocket expenses | B141: =+SUM(B136:B140) -> 522 | C141: =+SUM(C136:C140) -> 203 | D141: =+SUM(D136:D140) -> 160 | K141: 0
A142: University contribution to Health Savings Account | B142: =+IF($B$13="Employee Only",500,1000) -> 500 | C142: N/A | D142: N/A | K142: 0
A143: Employee premium for coverage | B143: =+$B$16*12 -> 0 | C143: =+$B$17*12 -> 0 | D143: =+$B$18*12 -> 0 | K143: 0
A144: Employee net cost | B144: =+B141+B143-B142 -> 22 | C144: =+C141+C143 -> 203 | D144: =+D141+D143 -> 160 | K144: 0
K145: 0
A146: ="Based on these expenses, the lowest cost option for you would be the "&INDEX(B135:D135,MATCH(MIN(B144:D144),B144:D144,0))&"." -> Based on these expenses, the lowest cost option for you would be the Health Savings Plan. | K146: 0
K147: 0
K148: 0
A149: Employee and Children - High Health Care Needs | K149: 0
K150: 0
A151: Employee's Expenses | K151: 0
A152: • 1 preventive doctor’s office visit: $172 ($0 member cost in-network, since in-network preventive visits are covered at 100%) | K152: 0
A153: • 2 specialist doctor’s office visits: $254 | K153: 0
A154: • 3 Tier-1 antibiotics: $100 | K154: 0
K155: 0
A156: Daughter's Expenses | K156: 0
A157: • 1 urgent care visit: $155 | K157: 0
A158: • 1 Tier-3 prescription: $1,500 | K158: 0
A159: • 4 days in the hospital: $10,876 | K159: 0
A160: • 2 specialist doctor’s office visits: $254 | K160: 0
K161: 0
A162: Son's Expenses | K162: 0
A163: • 2 specialist doctor’s office visits: $254 | K163: 0
A164: • 3 Tier-1 antibiotics: $33 | K164: 0
K165: 0
A166: Your Annual Costs | K166: 0
B167: Health Savings Plan | C167: Classic Plan | D167: Premier Plan | K167: 0
A168: Preventive visits for each family member | B168: 0 | C168: 0 | D168: 0 | K168: 0
A169: Employee's specialist office visits | B169: 254 | C169: =55*2 -> 110 | D169: =45*2 -> 90 | K169: 0
A170: Employee's Tier 1 prescription drugs | B170: 100 | C170: =18*3 -> 54 | D170: =14*3 -> 42 | K170: 0
A171: Daughter's urgent care visit | B171: 155 | C171: 55 | D171: 50 | K171: 0
A172: Daughter's Tier 3 prescription drugs | B172: 1500 | C172: 97 | D172: 92 | K172: 0
A173: Daughter's hospital stay | B173: =+(2800-B171-B172)+(10876-(2800-B171-B172))*0.1 -> 2118.1 | C173: =+(10876-1250-300)*0.25+1250+300 -> 3881.5 | D173: =MIN(300+700+(10876-300-700)*0.2,3050-D171) -> 2975.2 | K173: 0
A174: Daughter's specialist office visits | B174: =254*0.1 -> 25.4 | C174: =2*55 -> 110 | D174: =2*45 -> 90 | K174: 0
A175: Son's office visits | B175: 254 | C175: =2*55 -> 110 | D175: =2*45 -> 90 | K175: 0
A176: Son's Tier 1 prescription drugs | B176: 33 | C176: =3*18 -> 54 | D176: =3*14 -> 42 | K176: 0
A177: Total out-of-pocket expenses | B177: =+SUM(B168:B176) -> 4439.5 | C177: =+SUM(C168:C176) -> 4471.5 | D177: =+SUM(D168:D176) -> 3471.2 | K177: 0
A178: University contribution to Health Savings Account | B178: =+IF($B$13="Employee Only",500,1000) -> 500 | C178: N/A | D178: N/A | K178: 0
A179: Employee premium for coverage | B179: =+$B$16*12 -> 0 | C179: =+$B$17*12 -> 0 | D179: =+$B$18*12 -> 0 | K179: 0
A180: Employee net cost | B180: =+B177+B179-B178 -> 3939.5 | C180: =+C177+C179 -> 4471.5 | D180: =+D177+D179 -> 3471.2 | K180: 0
K181: 0
A182: ="Based on these expenses, the lowest cost option for you would be the "&INDEX(B167:D167,MATCH(MIN(B180:D180),B180:D180,0))&"." -> Based on these expenses, the lowest cost option for you would be the Premier Plan. | K182: 0
K183: 0
K184: 0
A185: Employee and Family - Low Health Care Needs | K185: =+IF(OR($B$13="Employee & Family",$L$16="N"),1,0) -> 0
K186: =+IF(OR($B$13="Employee & Family",$L$16="N"),1,0) -> 0
A187: Employee's Expenses | K187: 0
A188: • 1 doctor’s office visit: $127 | K188: 0
A189: • 6 Tier-1 antibiotics: $200 | K189: 0
A190: • 1 Tier-2 prescription: $200 | K190: 0
K191: 0
A192: Spouse's Expenses | K192: 0
A193: • 2 specialist doctor’s office visits: $254 | K193: 0
A194: • 1 Tier-2 prescription: $200 | K194: 0
K195: 0
A196: Daughter's Expenses | K196: 0
A197: • 2 Tier-1 antibiotics: $66 | K197: 0
A198: • 1 doctor’s office visit: $127 | K198: 0
A199: • 3 preventive doctor’s office visits: $516 ($0 member cost in-network, since in-network preventive visits are covered at 100%) | K199: 0
K200: 0
A201: Your Annual Costs | K201: 0
B202: Health Savings Plan | C202: Classic Plan | D202: Premier Plan | K202: 0
A203: Preventive visits for each family member | B203: 0 | C203: 0 | D203: 0 | K203: 0
A204: Employee's office visit | B204: 127 | C204: 35 | D204: 25 | K204: 0
A205: Employee's Tier 1 prescription drugs | B205: 200 | C205: =18*6 -> 108 | D205: =14*6 -> 84 | K205: 0
A206: Employee's Tier 2 prescription drugs | B206: 200 | C206: 62 | D206: 57 | K206: 0
A207: Spouse's specialist office visits | B207: 254 | C207: =2*55 -> 110 | D207: =2*45 -> 90 | K207: 0
... 38 more rows

Sheet Lists (hidden)
B2: For HSA | D2: Activate Macro?
B3: Employee Only | D3: Y
B4: Employee & Spouse | D4: N
B5: Employee & Child(ren)
B6: Employee & Family
B11: Password: | C11: SegalUAS2021
